fUST/lending_fUST_20241105
["ID","MTS","AMOUNT","RATE_DAILY","PERIOD"]
[341326168,1730805393604,-4268.50524047,0.00020751,2]
[341326169,1730805393627,-4268.50524047,0.00020751,2]
[341326170,1730805393651,-4268.50524047,0.00020751,2]
[341326171,1730805393674,-4629.86018146,0.00020751,2]
[341326172,1730805393696,-4629.86018146,0.00020751,2]
[341326173,1730805393720,-4629.86018146,0.00020751,2]
[341326174,1730805393743,-4629.86018146,0.00020751,2]
[341326175,1730805393767,-4629.86018146,0.00020751,2]
[341326176,1730805393792,-4629.86018146,0.00020751,2]
[341326177,1730805393816,-4629.86018143,0.00020751,2]
[341326178,1730805393839,-24900.0,0.00020752,2]
[341326179,1730805393861,-500.0,0.00020773,2]
[341326180,1730805393885,-271.39767969,0.00020773,2]
[341326181,1730805393908,-500.0,0.00020773,2]
[341326182,1730805393931,-238.2097578,0.00020998,2]
[341326183,1730805393954,-199.84329136,0.00021679,2]
[341326184,1730805393977,-2872.27064241,0.00021681,2]
[341326185,1730805393999,-500.0,0.00021773,2]
[341326186,1730805394021,-500.0,0.00021773,2]
[341326187,1730805394045,-500.0,0.00021773,2]
[341326188,1730805394067,-489.87925281,0.00021773,2]
[341326189,1730805394092,-501.43060068,0.00021773,2]
[341326190,1730805394115,-500.0,0.00021773,2]
[341326191,1730805394138,-500.0,0.00021773,2]
[341326192,1730805394161,-506.44546292,0.00021773,2]
[341326193,1730805394185,-500.0,0.00021773,2]
[341326194,1730805394207,-500.84805051,0.00021773,2]
[341326195,1730805394229,-500.0,0.00021773,2]
[341326196,1730805394253,-263566.72153852,0.0002178,2]
[341326197,1730805394276,-154.150827,0.0002178,2]
[341326198,1730805394299,-154.581624,0.0002178,2]
[341326199,1730805394321,-151.0,0.0002178,2]
[341326200,1730805394345,-151.0,0.0002178,2]
[341326201,1730805394370,-236.998317,0.0002178,2]
[341326202,1730805394394,-236.998317,0.0002178,2]
[341326203,1730805394416,-151.0,0.0002178,2]
[341326204,1730805394524,-161.860257,0.0002178,2]
[341326205,1730805394547,-151.0,0.0002178,2]
[341326206,1730805394571,-151.0,0.0002178,2]
[341326207,1730805394595,-151.0,0.0002178,2]
[341326208,1730805394618,-172.993376,0.0002178,2]
[341326209,1730805394642,-172.993376,0.0002178,2]
[341326210,1730805394664,-150.112233,0.000218,4]
[341326211,1730805394686,-199.84329136,0.00021873,2]
[341326212,1730805394710,-150.112233,0.000219,4]
[341326213,1730805394732,-150.112233,0.000219,3]
[341326214,1730805394755,-150.112233,0.000219,3]
[341326215,1730805394777,-150.112233,0.000219,3]
[341326216,1730805394799,-1437.0,0.000219,7]
[341326217,1730805394821,-166.666666,0.00021918,2]
[341326218,1730805394844,-501.78410143,0.00021973,2]
[341326219,1730805394869,-500.0,0.00021973,2]
[341326220,1730805394892,-151.0,0.00021997,7]
[341326221,1730805394916,-151.0,0.00021997,7]
[341326222,1730805394942,-319.16052,0.00021997,7]
[341326223,1730805394968,-151.0,0.00021997,7]
[341326224,1730805394993,-319.16052,0.00021997,7]
[341326225,1730805395017,-151.0,0.00021997,7]
[341326226,1730805395041,-334.860868,0.00021997,7]
[341326227,1730805395065,-334.860868,0.00021997,7]
[341326228,1730805395092,-154.421935,0.00021997,7]
[341326229,1730805395115,-154.421935,0.00021997,7]
[341326230,1730805395141,-5000.0,0.00021997,2]
[341326231,1730805395164,-5000.0,0.00021997,2]
[341326232,1730805395188,-5000.0,0.00021997,2]
[341326233,1730805395211,-5000.0,0.00021997,2]
[341326234,1730805395234,-5000.0,0.00021997,2]
[341326235,1730805395256,-5000.0,0.00021997,2]
[341326236,1730805395279,-5000.0,0.00021997,2]
[341326237,1730805395302,-5000.0,0.00021997,2]
[341326238,1730805395325,-309.2459133,0.00021997,2]
[341326239,1730805395348,-619321.21338155,0.00022,30]
[341326240,1730805405422,520.83333333,0.00020185,2]
[341326241,1730805412860,5000.0,0.00020185,2]
[341326242,1730805428312,439.03092148,0.00020185,2]
[341326243,1730805496745,-1168.458372,0.00020514,2]
[341326244,1730805496769,-250.0,0.0002059,2]
[341326245,1730805496792,-300.0,0.00020749,2]
[341326246,1730805496821,-300.0,0.00020749,2]
[341326247,1730805496846,-153.64816705,0.0002075,2]
[341326248,1730805496871,-500.0,0.0002075,2]
[341326249,1730805496894,-325.43110751,0.0002075,2]
[341326250,1730805496916,-500.0,0.0002075,2]
[341326251,1730805496941,-500.0,0.0002075,2]
[341326252,1730805496967,-500.0,0.0002075,2]
[341326253,1730805496990,-500.0,0.0002075,2]
[341326254,1730805497014,-500.0,0.0002075,2]
[341326255,1730805497037,-500.0,0.0002075,2]
[341326256,1730805497060,-500.0,0.0002075,2]
[341326257,1730805497085,-500.0,0.0002075,2]
[341326258,1730805497110,-500.0,0.0002075,2]
[341326259,1730805497133,-500.0,0.0002075,2]
[341326260,1730805497156,-487.39525056,0.0002075,2]
[341326261,1730805497185,-500.0,0.0002075,2]
[341326262,1730805497210,-500.0,0.0002075,2]
[341326263,1730805497236,-500.0,0.0002075,2]
[341326264,1730805497261,-500.0,0.0002075,2]
[341326265,1730805497286,-500.0,0.0002075,2]
[341326266,1730805497312,-500.0,0.0002075,2]
[341326267,1730805497336,-500.0,0.0002075,2]
[341326268,1730805497358,-500.0,0.0002075,2]
[341326269,1730805497381,-500.0,0.0002075,2]
[341326270,1730805497404,-500.0,0.0002075,2]
[341326271,1730805497430,-500.0,0.0002075,2]
[341326272,1730805497456,-500.0,0.0002075,2]
[341326273,1730805497572,-3403.0630469,0.00020891,2]
[341326274,1730805497596,-1999.533837,0.00021,2]
[341326275,1730805497622,-1999.533837,0.00021685,2]
[341326276,1730805497646,-176.266812,0.0002178,2]
[341326277,1730805497668,-176.266812,0.0002178,2]
[341326278,1730805497690,-151.0,0.0002178,2]
[341326279,1730805497715,-151.0,0.0002178,2]
[341326280,1730805497738,-151.0,0.0002178,2]
[341326281,1730805497764,-151.0,0.0002178,2]
[341326282,1730805497789,-151.0,0.0002178,2]
[341326283,1730805497813,-151.0,0.0002178,2]
[341326284,1730805497839,-267.674636,0.0002178,2]
[341326285,1730805497864,-267.674636,0.0002178,2]
[341326286,1730805497899,-192.11155618,0.000219,2]
[341326287,1730805497929,-164323.84480988,0.00022,30]
[341326288,1730805497956,-150.112233,0.00022,3]
[341326289,1730805497981,-151.0,0.00022,7]
[341326290,1730805498006,-151.612243,0.00022,7]
[341326291,1730805498030,-151.0,0.00022,7]
[341326292,1730805498055,-151.0,0.00022,7]
[341326293,1730805498080,-319.16052,0.00022,7]
[341326294,1730805498104,-319.16052,0.00022,7]
[341326295,1730805498128,-151.0,0.00022,7]
[341326296,1730805498151,-150.112233,0.00022,4]
[341326297,1730805498178,-150.112233,0.00022,3]
[341326298,1730805498201,-334.860868,0.00022,7]
[341326299,1730805498225,-334.860868,0.00022,7]
[341326300,1730805498251,-153.678771,0.00022,7]
[341326301,1730805498275,-236.998317,0.00022,7]
[341326302,1730805498298,-236.998317,0.00022,7]
[341326303,1730805498323,-172.340101,0.00022,7]
[341326304,1730805498345,-154.421935,0.00022,7]
[341326305,1730805498368,-154.421935,0.00022,7]
[341326306,1730805498390,-151.0,0.00022,7]
[341326307,1730805498414,-151.0,0.00022,7]
[341326308,1730805498436,-172.993376,0.00022,7]
[341326309,1730805498459,-279.997042,0.00022,7]
[341326310,1730805498482,-172.993376,0.00022,7]
[341326311,1730805498506,-176.266812,0.00022,7]
[341326312,1730805498529,-176.266812,0.00022,7]
[341326313,1730805498551,-151.0,0.00022,7]
[341326314,1730805498577,-151.0,0.00022,7]
[341326315,1730805498601,-151.0,0.00022,7]
[341326316,1730805498625,-151.0,0.00022,7]
[341326317,1730805498647,-151.0,0.00022,7]
[341326318,1730805498671,-151.0,0.00022,7]
[341326319,1730805498696,-267.674636,0.00022,7]
[341326320,1730805498719,-267.674636,0.00022,7]
[341326321,1730805498742,-7543.08251045,0.00022191,2]
[341326322,1730805498765,-1999.533837,0.0002237,2]
[341326323,1730805498789,-500.0,0.00022514,2]
[341326324,1730805498813,-430.74357526,0.00022514,2]
[341326325,1730805498837,-500.0,0.00022514,2]
[341326326,1730805498860,-500.0,0.00022514,2]
[341326327,1730805498882,-501.0675274,0.00022514,2]
[341326328,1730805498905,-500.0,0.00022514,2]
[341326329,1730805498928,-559.76919488,0.00022514,2]
[341326330,1730805498951,-420.0,0.00022576,2]
[341326331,1730805498974,-166.666666,0.00022773,2]
[341326332,1730805498997,-150.112233,0.000228,8]
[341326333,1730805499021,-420.0,0.00022824,2]
[341326334,1730805499044,-171.746,0.00023116,2]
[341326335,1730805499068,-500.0,0.00023142,2]
[341326336,1730805499096,-1064.9420453,0.00023142,2]
[341326337,1730805499120,-501.38365408,0.00023142,2]
[341326338,1730805499143,-192.11155618,0.00023229,2]
[341326339,1730805499165,-1000.0,0.00023342,2]
[341326340,1730805499193,-410.77025274,0.000235,2]
[341326341,1730805499217,-150.112233,0.000236,10]
[341326342,1730805499240,-166.666666,0.00023627,2]
[341326343,1730805499265,-1000.0,0.00023884,2]
[341326344,1730805499288,-1000.0,0.00023884,2]
[341326345,1730805499312,-500.0,0.00023884,2]
[341326346,1730805499336,-500.0,0.00023884,2]
[341326347,1730805529711,-150.112233,0.000244,9]
[341326348,1730805529738,-150.112233,0.000244,5]
[341326349,1730805529763,-166.666666,0.00024482,2]
[341326350,1730805529786,-192.11155618,0.00024558,2]
[341326351,1730805529809,-587.0,0.00024564,2]
[341326352,1730805529833,-500.0,0.00024657,2]
[341326353,1730805529855,-500.0,0.00024657,2]
[341326354,1730805529879,-331.93280562,0.00024657,2]
[341326355,1730805529901,-150.0,0.00024658,2]
[341326356,1730805529925,-500.0,0.00024658,2]
[341326357,1730805529950,-500.0,0.00024658,2]
[341326358,1730805529975,-500.0,0.00024658,2]
[341326359,1730805529998,-500.0,0.00024658,2]
[341326360,1730805530023,-500.0,0.00024658,2]
[341326361,1730805530066,-500.0,0.00024658,2]
[341326362,1730805530092,-500.0,0.00024658,2]
[341326363,1730805530118,-500.0,0.00024658,2]
[341326364,1730805530144,-500.0,0.00024658,2]
[341326365,1730805530168,-637.87908643,0.00024658,2]
[341326366,1730805530197,-500.0,0.00024658,2]
[341326367,1730805530228,-500.0,0.00024658,2]
[341326368,1730805530253,-500.0,0.00024658,2]
[341326369,1730805530278,-500.0,0.00024658,2]
[341326370,1730805530302,-500.0,0.00024658,2]
[341326371,1730805530327,-500.0,0.00024658,2]
[341326372,1730805530351,-500.0,0.00024658,2]
[341326373,1730805530375,-500.0,0.00024658,2]
[341326374,1730805530400,-500.0,0.00024658,2]
[341326375,1730805530426,-500.0,0.00024658,2]
[341326376,1730805530454,-500.0,0.00024658,2]
[341326377,1730805530477,-165.66594899,0.00024658,2]
[341326378,1730805530502,-500.0,0.00024658,2]
[341326379,1730805530527,-500.0,0.00024658,2]
[341326380,1730805530551,-500.0,0.00024658,2]
[341326381,1730805530576,-500.0,0.00024658,2]
[341326382,1730805530600,-500.0,0.00024658,2]
[341326383,1730805530626,-500.0,0.00024658,2]
[341326384,1730805530650,-500.0,0.00024658,2]
[341326385,1730805530673,-500.0,0.00024658,2]
[341326386,1730805530698,-500.0,0.00024658,2]
[341326387,1730805530721,-3977.13,0.000247,14]
[341326388,1730805530855,-1003.71,0.000247,14]
[341326389,1730805530879,-159.30260061,0.000247,2]
[341326390,1730805530901,-501.51845211,0.000247,2]
[341326391,1730805530923,-500.0,0.000247,2]
[341326392,1730805530946,-1720.01113605,0.00025,2]
[341326393,1730805530970,-1921.28,0.00025,14]
[341326394,1730805530992,-2595.77,0.00025,14]
[341326395,1730805531015,-587.0,0.00025106,2]
[341326396,1730805531038,-150.112233,0.000253,10]
[341326397,1730805531062,-150.112233,0.000253,14]
[341326398,1730805531234,499.99999999,0.00024658,2]
[341326399,1730805543153,500.0,0.000247,2]
[341326400,1730805552762,500.89101891,0.000247,2]
[341326401,1730805553256,500.0,0.000247,2]
[341326402,1730805663120,-178.0,0.00021916,2]
[341326403,1730805669275,-122.0,0.00021916,2]
[341326404,1730805669299,-300.0,0.00021916,2]
[341326405,1730805669327,-5000.0,0.00021917,2]
[341326406,1730805669351,-5000.0,0.00021917,2]
[341326407,1730805669375,-192.94208789,0.00021917,2]
[341326408,1730805669401,-420.0,0.00023817,2]
[341326409,1730805676198,1421.8110886,0.0001,2]
[341326410,1730805681795,318.922966,0.00013973,2]
[341326411,1730805682000,318.922966,0.00020447,2]
[341326413,1730805689472,-420.0,0.00024108,2]
[341326414,1730805689499,-150.0,0.00024658,2]
[341326415,1730805689523,-302.8183302,0.00025,2]
[341326416,1730805689548,-302.8183302,0.0002525,2]
[341326417,1730805689572,-309.88350697,0.000255,2]
[341326418,1730805689598,-237.54212072,0.00025883,2]
[341326419,1730805689624,-500.0,0.00025883,2]
[341326420,1730805689648,-500.0,0.00025883,2]
[341326421,1730805689673,-518.40732767,0.00025883,2]
[341326422,1730805689698,-587.0,0.00025884,2]
[341326423,1730805689720,-573.7725231,0.00025931,2]
[341326424,1730805689743,-425.0,0.00026,2]
[341326425,1730805706907,520.83333333,0.00021917,2]
[341326426,1730805734333,219.33797967,0.00024658,2]
[341326427,1730805752323,302.8183302,0.00025818,2]
[341326428,1730805764322,160.530949,0.00024914,2]
[341326429,1730805769640,520.83333333,0.00021571,2]
[341326430,1730805780070,-3000.0,0.00026007,2]
[341326431,1730805780095,-24900.0,0.00026066,2]
[341326432,1730805780119,-310.71908448,0.00026076,2]
[341326433,1730805780143,-150.112233,0.000261,12]
[341326434,1730805780167,-150.112233,0.000261,11]
[341326435,1730805780190,-425.0,0.00026164,2]
[341326436,1730805780215,-178.407323,0.00026181,2]
[341326437,1730805780239,-178.407323,0.00026188,2]
[341326438,1730805780264,-178.407323,0.00026195,2]
[341326439,1730805780290,-178.407323,0.00026202,2]
[341326440,1730805780314,-178.407323,0.00026209,2]
[341326441,1730805780340,-178.407323,0.00026216,2]
[341326442,1730805780367,-178.407323,0.00026223,2]
[341326443,1730805780391,-178.407323,0.00026229,2]
[341326444,1730805780416,-178.407323,0.00026236,2]
[341326445,1730805780439,-178.407323,0.00026243,2]
[341326446,1730805780462,-1940.7584569,0.00026249,2]
[341326447,1730805780485,-178.407323,0.0002625,2]
[341326448,1730805780510,-178.407323,0.00026257,2]
[341326449,1730805780533,-178.407323,0.00026264,2]
[341326450,1730805780556,-178.407323,0.00026271,2]
[341326451,1730805780581,-178.407323,0.00026278,2]
[341326452,1730805780604,-178.407323,0.00026284,2]
[341326453,1730805780628,-178.407323,0.00026291,2]
[341326454,1730805780651,-178.407323,0.00026298,2]
[341326455,1730805780677,-300.0,0.00026305,2]
[341326456,1730805780700,-300.0,0.00026305,2]
[341326457,1730805780725,-178.407323,0.00026305,2]
[341326458,1730805780750,-178.407323,0.00026312,2]
[341326459,1730805780773,-1740.657193,0.00026794,2]
[341326460,1730805780925,-644.38923947,0.00026849,2]
[341326461,1730805780955,-150.112233,0.000269,17]
[341326462,1730805780980,-150.112233,0.000269,15]
[341326463,1730805827308,500.0,0.00026065,2]
[341326464,1730805827336,500.0,0.00026065,2]
[341326465,1730805827369,500.0,0.00026065,2]
[341326466,1730805827408,600.01476138,0.00026065,2]
[341326467,1730805827438,500.0,0.00026065,2]
[341326468,1730805827466,500.0,0.00026065,2]
[341326469,1730805827581,348.52407554,0.00026065,2]
[341326470,1730805827610,529.50375403,0.00026065,2]
[341326471,1730805827637,203.35908013,0.00026065,2]
[341326472,1730805832488,520.83333333,0.00021224,2]
[341326473,1730805875302,-318.922966,0.00026921,2]
[341326474,1730805875326,-189.0,0.00027,2]
[341326475,1730805881171,454.2274953,0.00026865,4]
[341326478,1730805912702,163.935124,0.0002643,2]
[341326481,1730805943143,150.84293585,0.00024658,2]
[341326482,1730805946955,166.0,0.00027,2]
[341326483,1730805948145,-161.7190428,0.00027002,4]
[341326484,1730805948168,-441.9437573,0.00027013,2]
[341326485,1730805948192,-454.2274953,0.00027134,4]
[341326486,1730805948217,-145.68557727,0.0002715,2]
[341326487,1730805968394,4829.06055523,0.00026819,2]
[341326488,1730806007784,627.0540374,0.00026439,2]
[341326489,1730806027153,-4739.269618,0.00027067,2]
[341326490,1730806027176,-195.658217,0.00027141,2]
[341326491,1730806027198,-18.24954673,0.0002715,2]
[341326492,1730806027220,-425.0,0.00027185,2]
[341326493,1730806027242,-300.0,0.00027348,2]
[341326494,1730806027265,-300.0,0.00027349,2]
[341326495,1730806027287,-23.94821503,0.0002735,2]
[341326577,1730806042496,1008.880489,0.0002667,2]
[341326589,1730806045086,-249.43605477,0.0002735,2]
[341326590,1730806046177,166.0,0.00027,2]
[341326591,1730806052136,-957.58721595,0.0002735,2]
[341326596,1730806103123,7200.00853829,0.0002,2]
[341326597,1730806109045,189.08677766,0.0002,10]
[341326598,1730806110452,1327.23208642,0.000223,2]
[341326599,1730806115286,1304.50502065,0.000134,2]
[341326600,1730806116038,267.35356859,0.00014114,2]
[341326601,1730806120483,4308.39116429,0.0002066,7]
[341326602,1730806122661,93250.94969818,0.00022,30]
[341326603,1730806126265,1563.31852745,0.00014,2]
[341326960,1730806154082,-1886.88997462,0.00020377,2]
[341327087,1730806159247,139.34397487,0.00021253,2]
[341327223,1730806165103,-24.73313013,0.00021253,2]
[341327224,1730806165129,-164.077105,0.00021264,2]
[341327225,1730806165151,-164.077105,0.00021276,2]
[341327226,1730806165174,-164.077105,0.00021288,2]
[341327227,1730806165195,-164.077105,0.000213,2]
[341327228,1730806165218,-164.077105,0.00021312,2]
[341327229,1730806165241,-164.077105,0.00021323,2]
[341327231,1730806165266,-164.077105,0.00021335,2]
[341327233,1730806165288,-164.077105,0.00021347,2]
[341327234,1730806165310,-164.077105,0.00021359,2]
[341327236,1730806165331,-335.40710891,0.000219,2]
[341327237,1730806165353,-300.0,0.00021999,2]
[341327239,1730806165375,-300.0,0.00021999,2]
[341327240,1730806165396,-6543.1806244,0.00022,30]
[341327487,1730806188212,169.6152047,0.00013973,2]
[341327555,1730806238391,-436.03794808,0.00021973,2]
[341327556,1730806238403,-500.0,0.00021973,2]
[341327557,1730806238413,-450.37841611,0.0002199,3]
[341327558,1730806238426,-156.86158389,0.0002199,3]
[341327559,1730806238437,-281.65567258,0.00021999,2]
[341327560,1730806238449,-18.34432742,0.00021999,2]
[341327561,1730806238458,-300.0,0.00021999,2]
[341327562,1730806238467,-159.94234562,0.00021999,2]
[341327563,1730806238477,-241.70870905,0.00022,2]
[341327564,1730806238486,-1990.62421251,0.00022,30]
[341327751,1730806243190,-10336.89561244,0.00022,30]
[341327752,1730806243270,-58.84740888,0.00022,30]
[341327770,1730806249894,-119633.73227076,0.00022,30]
[341327812,1730806698932,271.084521,0.00013973,2]
[341327820,1730806889066,202.622063,0.00019387,2]
[341327822,1730806973239,250.0,0.00019661,2]
[341327823,1730807044880,501.7205421,0.00019661,2]
[341327825,1730807056488,3283.446634,0.00019661,2]
[341327827,1730807069448,651.588765,0.00019625,2]
[341327829,1730807143142,-245.82493948,0.00020346,2]
[341327830,1730807148096,-155.65810312,0.00020346,2]
[341327831,1730807171763,511.6064451,0.00019632,2]
[341327832,1730807243093,-192.08641196,0.00020247,2]
[341327833,1730807243116,-2881.9635914,0.00020346,2]
[341327834,1730807243138,-353.43163582,0.00020347,2]
[341327835,1730807243163,-271.084521,0.00020447,2]
[341327836,1730807243186,-3000.0,0.00020498,2]
[341327837,1730807243209,-300.0,0.00020671,2]
[341327838,1730807243232,-300.0,0.00020671,2]
[341327839,1730807243257,-500.0,0.00020672,2]
[341327840,1730807243281,-34.09769469,0.00020672,2]
[341327841,1730807246113,-465.90230531,0.00020672,2]
[341327842,1730807246139,-500.0,0.00020672,2]
[341327843,1730807246163,-209.03881243,0.00020672,2]
[341327844,1730807246185,-500.0,0.00020672,2]
[341327845,1730807246209,-500.0,0.00020672,2]
[341327846,1730807246233,-415.81708326,0.00020672,2]
[341327847,1730807252111,-204.18291674,0.00020672,2]
[341327848,1730807252136,-161.13913937,0.00020731,2]
[341327849,1730807252159,-857.96257625,0.00020731,2]
[341327852,1730807293986,14749.00000007,0.00033613,30]
[341327853,1730807311492,243.976068,0.00013973,2]
[341327855,1730807332982,3000.0,0.00019798,2]
[341327856,1730807340180,24900.0,0.00020063,2]
[341327857,1730807363203,-243.976068,0.00020447,2]
[341327858,1730807363227,-180.0,0.0002073,2]
[341327859,1730807363254,-4822.65245864,0.00020831,2]
[341327860,1730807368095,-1785.96602838,0.00020831,2]
[341327861,1730807368117,-300.0,0.00020896,2]
[341327862,1730807368144,-300.0,0.00020896,2]
[341327863,1730807368167,-14379.0103563,0.00020897,2]
[341327864,1730807368189,-161.1140976,0.00020931,2]
[341327865,1730807368216,-3283.446634,0.00021031,2]
[341327866,1730807368240,-169.2388798,0.00021103,2]
[341327867,1730807368266,-1295.95584107,0.00021917,2]
[341327873,1730807422867,-191.838763,0.00020978,2]
[341327874,1730807422892,-300.0,0.00021916,2]
[341327875,1730807422916,-300.0,0.00021916,2]
[341327876,1730807422942,-3704.04415893,0.00021917,2]
[341327877,1730807422964,-5000.0,0.00021917,2]
[341327878,1730807422988,-3048.23542803,0.00021917,2]
[341327879,1730807423010,-166.666666,0.00021918,2]
[341327880,1730807423032,-500.0,0.00021918,2]
[341327881,1730807423056,-513.13979265,0.00021918,2]
[341327882,1730807423079,-500.0,0.00021973,2]
[341327883,1730807423100,-504.34641589,0.00022,2]
[341327884,1730807423122,-88734.7287755,0.00022,30]
[341327933,1730807438759,-161.13913937,0.00022,2]
[341327934,1730807438769,-45415.08576512,0.00022,30]
[341327935,1730807439230,-20942.90097759,0.00022,30]
[341328029,1730807446389,-287.86202233,0.00022,30]
[341328030,1730807460406,-1317.4,0.0002199,3]
[341328031,1730807460429,-7316.6,0.00022,30]
[341328032,1730807487110,-5000.0,0.00021917,2]
[341328033,1730807487133,-3387.01487778,0.00021917,2]
[341328034,1730807487156,-300.0,0.00021999,2]
[341328035,1730807487182,-300.0,0.00021999,2]
[341328036,1730807487204,-91012.98512222,0.00022,30]
[341328037,1730807496464,-4269.76593521,0.00022,30]
[341328038,1730807496486,-812.00251591,0.00022,3]
[341328039,1730807496507,-906.99,0.00022,3]
[341328040,1730807496529,-453.49,0.00022,3]
[341328041,1730807496551,-557.75154888,0.0002201,16]
[341328042,1730807512265,-5691.73172022,0.0002201,16]
[341328067,1730807698170,11177.0,0.0002,2]
[341328071,1730807796576,195.179044,0.00013973,2]
[341328087,1730808332132,-160.530949,0.00020375,2]
[341328088,1730808332154,-26.31649552,0.00020531,2]
[341328089,1730808335705,219.578461,0.00013973,2]
[341328090,1730808344110,-176.26365554,0.00020447,2]
[341328098,1730808432087,-43.31480546,0.00020447,2]
[341328099,1730808432108,-364.92241881,0.00020531,2]
[341328101,1730808440084,-113.97071947,0.00020531,2]
[341328102,1730808440104,-486.9514183,0.00020532,2]
[341328103,1730808440125,-390.651825,0.00020599,2]
[341328104,1730808440144,-188.18400904,0.00020731,2]
[341328105,1730808440165,-250.0,0.00020842,2]
[341328106,1730808440184,-393.5541071,0.00021125,2]
[341328107,1730808440204,-2140.536132,0.0002113,2]
[341328108,1730808440224,-150.0,0.00021155,2]
[341328109,1730808440244,-3000.0,0.00021299,2]
[341328110,1730808440264,-150.59753989,0.00021402,2]
[341328111,1730808440291,-647.78692813,0.00021766,2]
[341328112,1730808444101,-827.68064228,0.00021766,2]
[341328125,1730808549088,-646.92890383,0.00021009,2]
[341328130,1730808566069,-1534.7717737,0.00021009,2]
[341328170,1730808632441,-818.29932247,0.00021009,2]
[341328171,1730808632451,-161.38438458,0.00021023,2]
[341328172,1730808632464,-138.61561542,0.00021023,2]
[341328173,1730808632475,-191.73897112,0.00021023,2]
[341328181,1730808638869,-2370.076312,0.00020783,2]
[341328182,1730808638880,-108.26102888,0.00021023,2]
[341328183,1730808638890,-349.1844179,0.00021023,2]
[341328184,1730808638900,-500.0,0.00021023,2]
[341328185,1730808638912,-500.0,0.00021023,2]
[341328186,1730808638922,-500.0,0.00021023,2]
[341328187,1730808638931,-500.0,0.00021023,2]
[341328188,1730808638940,-500.0,0.00021023,2]
[341328189,1730808638950,-192.29203039,0.00021023,2]
[341328190,1730808638959,-500.0,0.00021023,2]
[341328191,1730808638969,-500.0,0.00021023,2]
[341328192,1730808638978,-500.0,0.00021023,2]
[341328193,1730808638987,-500.0,0.00021023,2]
[341328194,1730808638997,-500.0,0.00021023,2]
[341328195,1730808639006,-500.0,0.00021023,2]
[341328196,1730808639015,-256.17122208,0.00021023,2]
[341328206,1730808640527,-84.64812028,0.00021023,2]
[341328207,1730808640538,-500.0,0.00021023,2]
[341328208,1730808640548,-500.0,0.00021023,2]
[341328209,1730808640557,-500.0,0.00021023,2]
[341328210,1730808640566,-500.0,0.00021023,2]
[341328211,1730808640578,-97.15326906,0.00021023,2]
[341328212,1730808640717,-402.84673094,0.00021023,2]
[341328213,1730808640727,-267.42419902,0.00021023,2]
[341328237,1730808643581,-232.57580098,0.00021023,2]
[341328238,1730808643591,-647.81226172,0.00021023,2]
[341328239,1730808643601,-500.0,0.00021023,2]
[341328240,1730808643618,-500.0,0.00021023,2]
[341328241,1730808643627,-371.27278922,0.00021023,2]
[341328242,1730808643637,-500.0,0.00021023,2]
[341328244,1730808643647,-162.90966865,0.00021023,2]
[341328246,1730808643656,-461.81452105,0.00021023,2]
[341328247,1730808643666,-500.0,0.00021023,2]
[341328248,1730808643675,-500.0,0.00021023,2]
[341328249,1730808643684,-10567.63363014,0.00021024,2]
[341328455,1730808959966,217.138519,0.00013973,2]
[341328585,1730808967245,3000.0,0.00019835,2]
[341328933,1730809106594,24900.0,0.00019848,2]